lending/lending_fUSD_20250131
["ID","MTS","AMOUNT","RATE_DAILY","PERIOD"]
[351129275,1738345854396,-500.0,0.00017397,2]
[351129276,1738345854405,-500.0,0.00017397,2]
[351129277,1738345854414,-500.0,0.00017397,2]
[351129278,1738345854423,-500.0,0.00017397,2]
[351129279,1738345854432,-500.0,0.00017397,2]
[351129280,1738345854441,-500.0,0.00017397,2]
[351129281,1738345854450,-500.0,0.00017397,2]
[351129282,1738345854459,-183.2532194,0.00017397,2]
[351129283,1738345854468,-500.0,0.00017397,2]
[351129284,1738345854478,-500.0,0.00017397,2]
[351129285,1738345854487,-500.0,0.00017397,2]
[351129286,1738345854496,-500.0,0.00017397,2]
[351129287,1738345854505,-285.68128992,0.00017397,2]
[351129288,1738345854514,-1023.49,0.00017397,2]
[351129289,1738345854522,-500.0,0.00017397,2]
[351129290,1738345854531,-500.0,0.00017397,2]
[351129291,1738345854540,-500.0,0.00017397,2]
[351129292,1738345854550,-517.126493,0.00017397,2]
[351129293,1738345854559,-500.0,0.00017397,2]
[351129294,1738345854568,-500.0,0.00017397,2]
[351129295,1738345854577,-500.0,0.00017397,2]
[351129296,1738345854586,-500.0,0.00017397,2]
[351129297,1738345854595,-500.0,0.00017397,2]
[351129298,1738345854604,-500.0,0.00017397,2]
[351129299,1738345854613,-500.0,0.00017397,2]
[351129300,1738345854622,-500.0,0.00017397,2]
[351129301,1738345854631,-500.0,0.00017397,2]
[351129302,1738345854639,-472.821195,0.00017397,2]
[351129303,1738345854649,-500.0,0.00017397,2]
[351129304,1738345854658,-500.0,0.00017397,2]
[351129305,1738345854667,-500.0,0.00017397,2]
[351129306,1738345854676,-500.0,0.00017397,2]
[351129307,1738345854685,-500.0,0.00017397,2]
[351129308,1738345854694,-699.45,0.00017397,2]
[351129309,1738345854703,-500.0,0.00017397,2]
[351129310,1738345854716,-500.0,0.00017397,2]
[351129311,1738345854725,-500.0,0.00017397,2]
[351129312,1738345854734,-500.0,0.00017397,2]
[351129313,1738345854743,-500.0,0.00017397,2]
[351129314,1738345854753,-500.0,0.00017397,2]
[351129315,1738345854763,-302.27104509,0.00017397,2]
[351129316,1738345854772,-500.0,0.00017397,2]
[351129317,1738345854782,-546.19,0.00017397,2]
[351129318,1738345854792,-500.0,0.00017397,2]
[351129319,1738345854802,-500.0,0.00017397,2]
[351129320,1738345854812,-866.74,0.00017397,2]
[351129321,1738345854821,-500.0,0.00017397,2]
[351129322,1738345854831,-500.0,0.00017397,2]
[351129323,1738345854840,-500.0,0.00017397,2]
[351129324,1738345854850,-500.0,0.00017397,2]
[351129325,1738345854861,-191.27648853,0.00017397,2]
[351129326,1738345854872,-632.21,0.00017397,2]
[351129327,1738345854882,-500.0,0.00017397,2]
[351129328,1738345854891,-1827.64,0.00017397,2]
[351129329,1738345854900,-500.0,0.00017397,2]
[351129330,1738345854910,-500.0,0.00017397,2]
[351129331,1738345854920,-500.0,0.00017397,2]
[351129332,1738345854929,-500.0,0.00017397,2]
[351129333,1738345854938,-841.74,0.00017397,2]
[351129334,1738345854949,-500.0,0.00017397,2]
[351129335,1738345854959,-1570.9,0.00017397,2]
[351129336,1738345854968,-500.0,0.00017397,2]
[351129337,1738345854978,-468.4151705,0.00017397,2]
[351129338,1738345854987,-500.0,0.00017397,2]
[351129339,1738345854997,-852.82,0.00017397,2]
[351129340,1738345855007,-601.57,0.00017397,2]
[351129341,1738345855017,-500.0,0.00017397,2]
[351129342,1738345855028,-678.21,0.00017397,2]
[351129343,1738345855037,-500.0,0.00017397,2]
[351129344,1738345855046,-500.0,0.00017397,2]
[351129345,1738345855056,-500.0,0.00017397,2]
[351129346,1738345855066,-588.3,0.00017397,2]
[351129347,1738345855077,-500.0,0.00017397,2]
[351129348,1738345855086,-513.92,0.00017397,2]
[351129349,1738345855096,-500.0,0.00017397,2]
[351129350,1738345855106,-500.0,0.00017397,2]
[351129351,1738345855117,-500.0,0.00017397,2]
[351129352,1738345855127,-1017.28,0.00017397,2]
[351129353,1738345855137,-505.74,0.00017397,2]
[351129354,1738345855147,-500.0,0.00017397,2]
[351129355,1738345855156,-500.0,0.00017397,2]
[351129356,1738345855166,-1516.18,0.00017397,2]
[351129357,1738345855178,-2102.91,0.00017397,2]
[351129358,1738345855188,-500.0,0.00017397,2]
[351129359,1738345855199,-500.0,0.00017397,2]
[351129360,1738345855208,-999.1,0.00017397,2]
[351129361,1738345855218,-732.23,0.00017397,2]
[351129362,1738345855229,-500.0,0.00017397,2]
[351129363,1738345855239,-635.16,0.00017397,2]
[351129364,1738345855248,-2231.79,0.00017397,2]
[351129365,1738345855258,-500.0,0.00017397,2]
[351129366,1738345855268,-500.0,0.00017397,2]
[351129367,1738345855279,-500.0,0.00017397,2]
[351129368,1738345855288,-1879.76,0.00017397,2]
[351129369,1738345855299,-3187.02,0.00017397,2]
[351129370,1738345855309,-2847.94,0.00017397,2]
[351129371,1738345855318,-1079.09,0.00017397,2]
[351129372,1738345855328,-500.0,0.00017397,2]
[351129373,1738345855338,-500.0,0.00017397,2]
[351129374,1738345855347,-500.0,0.00017397,2]
[351129375,1738345855356,-1844.88,0.00017397,2]
[351129376,1738345855366,-2152.79,0.00017397,2]
[351129377,1738345855375,-500.0,0.00017397,2]
[351129378,1738345855386,-1697.9,0.00017397,2]
[351129379,1738345855395,-587.03,0.00017397,2]
[351129380,1738345855406,-2958.68,0.00017397,2]
[351129381,1738345855415,-1174.32,0.00017397,2]
[351129382,1738345855425,-3296.18,0.00017397,2]
[351129383,1738345855436,-500.0,0.00017397,2]
[351129384,1738345855445,-323.97246903,0.00017397,2]
[351129385,1738345855455,-500.0,0.00017397,2]
[351129386,1738345855464,-500.0,0.00017397,2]
[351129387,1738345855474,-1011.29,0.00017397,2]
[351129388,1738345855483,-1053.08,0.00017397,2]
[351129389,1738345855493,-676.41,0.00017397,2]
[351129390,1738345855502,-1892.79,0.00017397,2]
[351129391,1738345855511,-1222.2,0.00017397,2]
[351129392,1738345855521,-500.0,0.00017397,2]
[351129393,1738345855530,-1179.22,0.00017397,2]
[351129394,1738345855539,-800.28,0.00017397,2]
[351129395,1738345855548,-500.0,0.00017397,2]
[351129396,1738345855558,-4384.89,0.00017397,2]
[351129397,1738345855568,-684.54,0.00017397,2]
[351129398,1738345855577,-1577.97,0.00017397,2]
[351129399,1738345855587,-568.77,0.00017397,2]
[351129400,1738345855597,-1328.68,0.00017397,2]
[351129401,1738345855606,-2720.16,0.00017397,2]
[351129402,1738345855616,-3853.5,0.00017397,2]
[351129403,1738345855626,-1121.78,0.00017397,2]
[351129404,1738345855635,-1741.72,0.00017397,2]
[351129405,1738345855645,-500.0,0.00017397,2]
[351129406,1738345855654,-549.85,0.00017397,2]
[351129407,1738345855664,-726.57,0.00017397,2]
[351129408,1738345855673,-2887.21,0.00017397,2]
[351129409,1738345855682,-656.18,0.00017397,2]
[351129410,1738345855692,-571.1,0.00017397,2]
[351129411,1738345855701,-1929.03,0.00017397,2]
[351129412,1738345855714,-1187.96,0.00017397,2]
[351129413,1738345855724,-500.0,0.00017397,2]
[351129414,1738345855733,-3123.51,0.00017397,2]
[351129415,1738345855743,-9995.63,0.00017397,2]
[351129416,1738345855754,-500.0,0.00017397,2]
[351129417,1738345855763,-872.76,0.00017397,2]
[351129418,1738345855772,-272.0,0.000174,2]
[351129419,1738345855781,-431.0,0.000174,2]
[351129420,1738345855792,-1000.0,0.00017409,2]
[351129421,1738345855803,-1176.10220293,0.00017417,2]
[351129422,1738345855813,-15042.3595,0.00017434,2]
[351129423,1738345855822,-7365.9197,0.00017434,2]
[351129424,1738345855832,-28729.63416803,0.00017477,2]
[351129425,1738345855842,-826.99784919,0.00017477,2]
[351129426,1738345855851,-200.0,0.00017479,2]
[351129427,1738345855861,-268.37455776,0.0001748,2]
[351129428,1738345855871,-17193.78499942,0.00017481,2]
[351129429,1738345855880,-4103.11722081,0.00017483,2]
[351129430,1738345855891,-28729.63416803,0.00017486,2]
[351129431,1738345855901,-11345.61100933,0.00017486,2]
[351129432,1738345855910,-200.0,0.00017487,2]
[351129433,1738345855921,-913.44659698,0.00017487,2]
[351129434,1738345855931,-551.91624169,0.00017487,2]
[351129435,1738345855941,-8648.26770986,0.00017487,2]
[351129436,1738345855951,-551.91624169,0.00017488,2]
[351129437,1738345855961,-673.82705466,0.00017488,2]
[351129438,1738345855971,-6766.1533654,0.0001749,2]
[351129439,1738345855981,-3086.12012651,0.00017491,2]
[351129440,1738345855991,-268.37455776,0.00017492,2]
[351129441,1738345856001,-673.82705466,0.00017492,2]
[351129442,1738345856011,-2279.79810599,0.00017494,2]
[351129443,1738345856021,-673.82705466,0.00017495,2]
[351129444,1738345856031,-551.91624169,0.00017495,2]
[351129445,1738345856041,-4844.99529207,0.00017496,2]
[351129446,1738345856052,-200.0,0.00017496,2]
[351129447,1738345856062,-23728.9336848,0.00017497,2]
[351129448,1738345856071,-34387.56999882,0.00017499,2]
[351129449,1738345856081,-200.0,0.00017499,2]
[351129450,1738345856091,-750.91457548,0.00017499,2]
[351129451,1738345856100,-1367.70574027,0.000175,2]
[351129452,1738345856110,-2101.44057797,0.000175,2]
[351129453,1738345856120,-13323.089068,0.000175,2]
[351129454,1738345856130,-1289.54638142,0.000175,2]
[351129455,1738345856140,-17193.78499942,0.000175,2]
[351129456,1738345856149,-4559.59621198,0.00017501,2]
[351129457,1738345856160,-268.37455776,0.00017501,2]
[351129458,1738345856171,-4213.19853469,0.00017501,2]
[351129459,1738345856182,-2279.79810599,0.00017502,2]
[351129460,1738345856192,-552.67540245,0.00017504,2]
[351129461,1738345856203,-200.0,0.00017505,2]
[351129462,1738345856214,-12897.68556407,0.00017505,2]
[351129463,1738345856224,-5000.0,0.00017506,4]
[351129464,1738345856238,-3086.12012652,0.00017506,2]
[351129465,1738345856250,-552.67540245,0.00017507,2]
[351129466,1738345856261,-34387.56999882,0.00017507,2]
[351129467,1738345856273,-17193.78499942,0.00017507,2]
[351129468,1738345856284,-200.0,0.00017508,2]
[351129469,1738345856295,-50025.26183784,0.00017508,2]
[351129470,1738345856311,-15630.26822255,0.00017508,2]
[351129471,1738345856324,-2984.86520682,0.00017508,2]
[351129472,1738345856336,-551.91624169,0.00017509,2]
[351129473,1738345856348,-50025.26183784,0.00017511,2]
[351129474,1738345856359,-7815.13411127,0.00017513,2]
[351129475,1738345856371,-35963.30332788,0.00017513,2]
[351129476,1738345856383,-17193.78499942,0.00017516,2]
[351129477,1738345856394,-11345.61100933,0.00017516,2]
[351129478,1738345856406,-4860.36355767,0.00017516,2]
[351129479,1738345856417,-2984.86520682,0.00017516,2]
[351129480,1738345856429,-3086.12012652,0.00017517,2]
[351129481,1738345856440,-4559.59621198,0.00017517,2]
[351129482,1738345856452,-826.99784919,0.00017518,2]
[351129483,1738345856463,-268.37455776,0.00017519,2]
[351129484,1738345856474,-4213.19853469,0.00017519,2]
[351129485,1738345856486,-5981.89699005,0.0001752,2]
[351129486,1738345856511,-393.04398086,0.0001752,2]
[351129487,1738345857672,-463.05,0.00016428,2]
[351129488,1738345857682,-500.0,0.00016438,2]
[351129489,1738345857692,-112.22,0.00016438,2]
[351129490,1738345857703,-387.78,0.00016438,2]
[351129491,1738345857716,-465.54255046,0.00016438,2]
[351129492,1738345857727,-34.45744954,0.00016438,2]
[351129493,1738345857736,-606.34,0.00016438,2]
[351129494,1738345857746,-629.29,0.00016574,2]
[351129495,1738345857757,-1431.41,0.00016575,2]
[351129496,1738345857766,-500.0,0.00016575,2]
[351129497,1738345857776,-629.29,0.00016711,2]
[351129498,1738345857785,-1431.41,0.00016712,2]
[351129499,1738345857795,-500.0,0.00016712,2]
[351129500,1738345857807,-629.29,0.00016848,2]
[351129501,1738345857816,-1431.41,0.00016849,2]
[351129502,1738345857825,-500.0,0.00016849,2]
[351129503,1738345857835,-629.29,0.00016985,2]
[351129504,1738345857844,-500.0,0.00016986,2]
[351129505,1738345857853,-1431.41,0.00016986,2]
[351129506,1738345857863,-500.0,0.00016986,2]
[351129507,1738345857872,-629.29,0.00017122,2]
[351129508,1738345857882,-500.0,0.00017123,2]
[351129509,1738345857892,-1431.41,0.00017123,2]
[351129510,1738345857902,-500.0,0.00017123,2]
[351129511,1738345857912,-629.29,0.00017259,2]
[351129512,1738345857921,-500.0,0.0001726,2]
[351129513,1738345857931,-1431.41,0.0001726,2]
[351129514,1738345857941,-500.0,0.0001726,2]
[351129515,1738345857950,-629.29,0.00017396,2]
[351129516,1738345857960,-1013.47,0.00017397,2]
[351129517,1738345857970,-500.0,0.00017397,2]
[351129518,1738345857979,-1431.41,0.00017397,2]
[351129519,1738345857989,-500.0,0.00017397,2]
[351129520,1738345857999,-823.67961835,0.00017478,2]
[351129521,1738345858009,-900.0,0.00017519,2]
[351129522,1738345858019,-900.0,0.00017519,2]
[351129523,1738345858030,-900.0,0.00017519,2]
[351129524,1738345858039,-900.0,0.00017519,2]
[351129525,1738345858051,-900.0,0.00017519,2]
[351129526,1738345858060,-900.0,0.00017519,2]
[351129527,1738345858069,-900.0,0.00017519,2]
[351129528,1738345858079,-2273.32673895,0.0001752,2]
[351129529,1738345858089,-4103.11722081,0.00017521,2]
[351129530,1738345858099,-8648.26770986,0.00017521,2]
[351129531,1738345858108,-1367.70574027,0.00017521,2]
[351129532,1738345858118,-214450.89703932,0.00017522,2]
[351129533,1738345858128,-913.44659698,0.00017524,2]
[351129534,1738345858138,-23728.9336848,0.00017526,2]
[351129535,1738345858148,-23728.9336848,0.00017526,2]
[351129536,1738345858158,-6766.1533654,0.00017527,2]
[351129537,1738345858168,-673.82705466,0.00017527,2]
[351129538,1738345858178,-12897.68556407,0.00017528,2]
[351129539,1738345858188,-753.07214012,0.00017528,2]
[351129540,1738345858198,-34387.56999882,0.00017528,2]
[351129541,1738345858208,-750.91457548,0.00017529,2]
[351129542,1738345858218,-28729.63416803,0.0001753,2]
[351129543,1738345858227,-1367.70574027,0.0001753,2]
[351129544,1738345858237,-2984.86520682,0.0001753,2]
[351129545,1738345858248,-11345.61100933,0.00017531,2]
[351129546,1738345858258,-23728.9336848,0.00017532,2]
[351129547,1738345858268,-4103.11722081,0.00017532,2]
[351129548,1738345858278,-1135.63,0.00017533,2]
[351129549,1738345858289,-984.81,0.00017533,2]
[351129550,1738345858299,-500.0,0.00017533,2]
[351129551,1738345858311,-500.0,0.00017533,2]
[351129552,1738345858321,-1574.17,0.00017533,2]
[351129553,1738345858331,-500.0,0.00017533,2]
[351129554,1738345858341,-612.08,0.00017533,2]
[351129555,1738345858351,-2319.45,0.00017533,2]
[351129556,1738345858361,-500.0,0.00017533,2]
[351129557,1738345858371,-500.0,0.00017533,2]
[351129558,1738345858381,-500.0,0.00017533,2]
[351129559,1738345858391,-1516.58,0.00017533,2]
[351129560,1738345858401,-500.0,0.00017533,2]
[351129561,1738345858411,-515.6,0.00017533,2]
[351129562,1738345858421,-656.6,0.00017533,2]
[351129563,1738345858431,-673.9,0.00017533,2]
[351129564,1738345858441,-1745.71,0.00017533,2]
[351129565,1738345858450,-4127.96,0.00017533,2]
[351129566,1738345858460,-792.79,0.00017533,2]
[351129567,1738345858469,-687.02,0.00017533,2]
[351129568,1738345858478,-611.69,0.00017533,2]
[351129569,1738345858487,-1150.4,0.00017533,2]
[351129570,1738345858497,-500.0,0.00017533,2]
[351129571,1738345858506,-629.29,0.00017533,2]
[351129572,1738345858516,-344.66671569,0.00017534,2]
[351129573,1738345858525,-500.0,0.00017534,2]
[351129574,1738345858535,-500.0,0.00017534,2]
[351129575,1738345858545,-500.0,0.00017534,2]
[351129576,1738345858556,-534.61,0.00017534,2]
[351129577,1738345858565,-500.0,0.00017534,2]
[351129578,1738345858574,-500.0,0.00017534,2]
[351129579,1738345858584,-500.0,0.00017534,2]
[351129580,1738345858594,-593.79,0.00017534,2]
[351129581,1738345858603,-500.0,0.00017534,2]
[351129582,1738345858612,-500.0,0.00017534,2]
[351129583,1738345858621,-500.0,0.00017534,2]
[351129584,1738345858631,-500.0,0.00017534,2]
[351129585,1738345858640,-535.49,0.00017534,2]
[351129586,1738345858649,-452.4358476,0.00017534,2]
[351129587,1738345858658,-500.0,0.00017534,2]
[351129588,1738345858668,-500.0,0.00017534,2]
[351129589,1738345858678,-500.0,0.00017534,2]
[351129590,1738345858688,-500.0,0.00017534,2]
[351129591,1738345858698,-500.0,0.00017534,2]
[351129592,1738345858708,-500.0,0.00017534,2]
[351129593,1738345858718,-239.13724922,0.00017534,2]
[351129594,1738345858730,-500.0,0.00017534,2]
[351129595,1738345858740,-192.68734361,0.00017534,2]
[351129596,1738345858751,-500.0,0.00017534,2]
[351129597,1738345858760,-500.0,0.00017534,2]
[351129598,1738345858770,-348.99364736,0.00017534,2]
[351129599,1738345858779,-500.0,0.00017534,2]
[351129600,1738345858789,-559.95661833,0.00017534,2]
[351129601,1738345858802,-1023.49,0.00017534,2]
[351129602,1738345858811,-500.0,0.00017534,2]
[351129603,1738345858820,-500.0,0.00017534,2]
[351129604,1738345858830,-500.0,0.00017534,2]
[351129605,1738345858840,-517.126493,0.00017534,2]
[351129606,1738345858849,-500.0,0.00017534,2]
[351129607,1738345858858,-500.0,0.00017534,2]
[351129608,1738345858867,-500.0,0.00017534,2]
[351129609,1738345858876,-500.0,0.00017534,2]
[351129610,1738345858885,-500.0,0.00017534,2]
[351129611,1738345858895,-500.0,0.00017534,2]
[351129612,1738345858904,-500.0,0.00017534,2]
[351129613,1738345858913,-500.0,0.00017534,2]
[351129614,1738345858924,-500.0,0.00017534,2]
[351129615,1738345858933,-472.821195,0.00017534,2]
[351129616,1738345858943,-500.0,0.00017534,2]
[351129617,1738345858953,-500.0,0.00017534,2]
[351129618,1738345858962,-500.0,0.00017534,2]
[351129619,1738345858972,-500.0,0.00017534,2]
[351129620,1738345858981,-500.0,0.00017534,2]
[351129621,1738345858991,-699.45,0.00017534,2]
[351129622,1738345859000,-500.0,0.00017534,2]
[351129623,1738345859010,-500.0,0.00017534,2]
[351129624,1738345859019,-500.0,0.00017534,2]
[351129625,1738345859028,-500.0,0.00017534,2]
[351129626,1738345859038,-500.0,0.00017534,2]
[351129627,1738345859047,-500.0,0.00017534,2]
[351129628,1738345859056,-500.0,0.00017534,2]
[351129629,1738345859065,-546.19,0.00017534,2]
[351129630,1738345859074,-364.82279278,0.00017534,2]
[351129631,1738345859084,-500.0,0.00017534,2]
[351129632,1738345859094,-866.74,0.00017534,2]
[351129633,1738345859104,-500.0,0.00017534,2]
[351129634,1738345859113,-500.0,0.00017534,2]
[351129635,1738345859123,-500.0,0.00017534,2]
[351129636,1738345859132,-500.0,0.00017534,2]
[351129637,1738345859142,-632.21,0.00017534,2]
[351129638,1738345859152,-500.0,0.00017534,2]
[351129639,1738345859161,-1827.64,0.00017534,2]
[351129640,1738345859171,-500.0,0.00017534,2]
[351129641,1738345859180,-500.0,0.00017534,2]
[351129642,1738345859190,-500.0,0.00017534,2]
[351129643,1738345859199,-500.0,0.00017534,2]
[351129644,1738345859209,-841.74,0.00017534,2]
[351129645,1738345859218,-648.95128955,0.00017534,2]
[351129646,1738345859228,-1570.9,0.00017534,2]
[351129647,1738345859237,-500.0,0.00017534,2]
[351129648,1738345859247,-500.0,0.00017534,2]
[351129649,1738345859257,-852.82,0.00017534,2]
[351129650,1738345859267,-601.57,0.00017534,2]
[351129651,1738345859277,-500.0,0.00017534,2]
[351129652,1738345859287,-678.21,0.00017534,2]
[351129653,1738345859296,-500.0,0.00017534,2]
[351129654,1738345859306,-500.0,0.00017534,2]
[351129655,1738345859316,-500.0,0.00017534,2]
[351129656,1738345859325,-588.3,0.00017534,2]
[351129657,1738345859336,-500.0,0.00017534,2]
[351129658,1738345859347,-513.92,0.00017534,2]
[351129659,1738345859356,-250.20449731,0.00017534,2]
[351129660,1738345859367,-500.0,0.00017534,2]
[351129661,1738345859377,-500.0,0.00017534,2]
[351129662,1738345859387,-1017.28,0.00017534,2]
[351129663,1738345859398,-505.74,0.00017534,2]
[351129664,1738345859408,-500.0,0.00017534,2]
[351129665,1738345859419,-500.0,0.00017534,2]
[351129666,1738345859429,-1516.18,0.00017534,2]
[351129667,1738345859439,-2102.91,0.00017534,2]
[351129668,1738345859449,-500.0,0.00017534,2]
[351129669,1738345859458,-500.0,0.00017534,2]
[351129670,1738345859468,-999.1,0.00017534,2]
[351129671,1738345859477,-732.23,0.00017534,2]
[351129672,1738345859487,-500.0,0.00017534,2]
[351129673,1738345859497,-635.16,0.00017534,2]
[351129674,1738345859506,-2231.79,0.00017534,2]
[351129675,1738345859516,-500.0,0.00017534,2]
[351129676,1738345859576,-500.0,0.00017534,2]
[351129677,1738345859587,-500.0,0.00017534,2]
[351129678,1738345859596,-1879.76,0.00017534,2]
[351129679,1738345859605,-3187.02,0.00017534,2]
[351129680,1738345859615,-2847.94,0.00017534,2]
[351129681,1738345859624,-1079.09,0.00017534,2]
[351129682,1738345859633,-500.0,0.00017534,2]
[351129683,1738345859644,-500.0,0.00017534,2]
[351129684,1738345859654,-500.0,0.00017534,2]
[351129685,1738345859664,-1844.88,0.00017534,2]
[351129686,1738345859673,-2152.79,0.00017534,2]
[351129687,1738345859682,-500.0,0.00017534,2]
[351129688,1738345859691,-1697.9,0.00017534,2]
[351129689,1738345859701,-587.03,0.00017534,2]
[351129690,1738345859714,-2958.68,0.00017534,2]
[351129691,1738345859724,-1174.32,0.00017534,2]
[351129692,1738345859733,-3296.18,0.00017534,2]
[351129693,1738345859742,-500.0,0.00017534,2]
[351129694,1738345859754,-500.0,0.00017534,2]
[351129695,1738345859763,-500.0,0.00017534,2]
[351129696,1738345859772,-1011.29,0.00017534,2]
[351129697,1738345859782,-1053.08,0.00017534,2]
[351129698,1738345859793,-676.41,0.00017534,2]
[351129699,1738345859801,-1892.79,0.00017534,2]
[351129700,1738345859811,-1222.2,0.00017534,2]
[351129701,1738345859821,-500.0,0.00017534,2]
[351129702,1738345859830,-1179.22,0.00017534,2]
[351129703,1738345859839,-800.28,0.00017534,2]
[351129704,1738345859848,-500.0,0.00017534,2]
[351129705,1738345859857,-4384.89,0.00017534,2]
[351129706,1738345859868,-684.54,0.00017534,2]
[351129707,1738345859878,-1577.97,0.00017534,2]
[351129708,1738345859887,-1328.68,0.00017534,2]
[351129709,1738345859896,-568.77,0.00017534,2]
[351129710,1738345859905,-2720.16,0.00017534,2]
[351129711,1738345859915,-3853.5,0.00017534,2]
[351129712,1738345859925,-1121.78,0.00017534,2]
[351129713,1738345859934,-1741.72,0.00017534,2]
[351129714,1738345859943,-500.0,0.00017534,2]
[351129715,1738345859952,-549.85,0.00017534,2]
[351129716,1738345859962,-726.57,0.00017534,2]
[351129717,1738345859971,-2887.21,0.00017534,2]
[351129718,1738345859980,-656.18,0.00017534,2]
[351129719,1738345859989,-571.1,0.00017534,2]
[351129720,1738345859998,-1929.03,0.00017534,2]
[351129721,1738345860007,-1187.96,0.00017534,2]
[351129722,1738345860016,-500.0,0.00017534,2]
[351129723,1738345860025,-3123.51,0.00017534,2]
[351129724,1738345860035,-9995.63,0.00017534,2]
[351129725,1738345860045,-500.0,0.00017534,2]
[351129726,1738345860056,-872.76,0.00017534,2]
[351129727,1738345860065,-1013.47,0.00017534,2]
[351129728,1738345860075,-500.0,0.00017534,2]
[351129729,1738345860086,-1431.41,0.00017534,2]
[351129730,1738345860095,-500.0,0.00017534,2]
[351129731,1738345860105,-7815.13411127,0.00017535,2]
[351129732,1738345860115,-4860.36355767,0.00017535,2]
[351129733,1738345860125,-2279.79810599,0.00017536,2]
[351129734,1738345860134,-3086.12012651,0.00017536,2]
[351129735,1738345860144,-3086.12012651,0.00017538,2]
[351129736,1738345860154,-200.0,0.0001754,2]
[351129737,1738345860163,-913.44659698,0.0001754,2]
[351129738,1738345860173,-913.44659698,0.00017541,2]
[351129739,1738345860182,-1031.15280526,0.00017541,2]
[351129740,1738345860192,-35963.30332788,0.00017541,2]
[351129741,1738345860201,-826.99784919,0.00017543,2]
[351129742,1738345860210,-4213.19853469,0.00017544,2]
[351129743,1738345860220,-362.53942792,0.00017544,2]
[351129744,1738345860230,-50025.26183784,0.00017545,2]
[351129745,1738345860240,-12897.68556407,0.00017545,2]
[351129746,1738345860250,-3086.12012652,0.00017546,2]
[351129747,1738345860260,-753.07214012,0.00017546,2]
[351129748,1738345860270,-4559.59621198,0.00017548,2]
[351129749,1738345860280,-753.07214012,0.00017548,2]
[351129750,1738345860290,-200.0,0.00017548,2]
[351129751,1738345860300,-6611.0210236,0.00017548,2]
[351129752,1738345860310,-750.91457548,0.00017549,2]
[351129753,1738345860321,-3086.12012652,0.00017549,2]
[351129754,1738345860330,-1203.55045868,0.0001755,2]
[351129755,1738345860339,-4213.19853469,0.0001755,2]
[351129756,1738345860348,-1203.55045868,0.0001755,2]
[351129757,1738345860358,-2279.79810599,0.0001755,2]
[351129758,1738345860367,-200.0,0.00017551,2]
[351129759,1738345860377,-8648.26770986,0.00017551,2]
[351129760,1738345860386,-1367.70574027,0.00017552,2]
[351129761,1738345860397,-4559.59621198,0.00017553,2]
[351129762,1738345860409,-28729.63416803,0.00017554,2]
[351129763,1738345860419,-1203.55045868,0.00017555,2]
[351129764,1738345860428,-6766.1533654,0.00017556,2]
[351129765,1738345860437,-362.53942792,0.00017556,2]
[351129766,1738345860446,-888.82670504,0.00017558,2]
[351129767,1738345860455,-774.3711779,0.00017558,2]
[351129768,1738345860465,-5416.584153,0.00017558,2]
[351129769,1738345860474,-1203.55045868,0.00017558,2]
[351129770,1738345860483,-15630.26822255,0.00017559,2]
[351129771,1738345860492,-1091.0,0.00017559,2]
[351129772,1738345860502,-2984.86520682,0.00017559,2]
[351129773,1738345860511,-750.91457548,0.00017559,2]
[351129774,1738345860521,-7815.13411127,0.0001756,2]